[Event "MCR rapid mládeže 2023 U16"]
[Site "Harachov, Czech Republic"]
[Date "2023.09.09"]
[Round "6.10"]
[White "Horkova, Tereza"]
[Black "Kammova, Katerina"]
[Result "1-0"]
[TimeControl "20min+5s/move"]
[WhiteElo "1720"]
[BlackElo "1393"]

1. e4 {[%clk 00:20:08]} e6 {[%clk 00:20:08]} {[%emt 00:00:02]} 2. d4 {[%clk
00:20:13]} {[%emt 00:00:01]} d5 {[%clk 00:20:12]} {[%emt 00:00:01]} 3. e5
{[%clk 00:20:17]} c5 {[%clk 00:20:15]} {[%emt 00:00:02]} 4. c3 {[%clk
00:20:22]} Nc6 {[%clk 00:20:07]} {[%emt 00:00:12]} 5. Nf3 {[%clk 00:20:24]}
{[%emt 00:00:02]} Bd7 {[%clk 00:20:10]} {[%emt 00:00:02]} 6. Be2 {[%clk
00:20:26]} {[%emt 00:00:03]} Rc8 {[%clk 00:19:51]} {[%emt 00:00:23]} 7. O-O
{[%clk 00:17:57]} {[%emt 00:02:35]} Nge7 {[%clk 00:19:26]} {[%emt 00:00:30]} 8.
Na3 {[%clk 00:17:50]} {[%emt 00:00:13]} Nf5 {[%clk 00:18:26]} {[%emt 00:01:04]}
9. Nc2 {[%clk 00:17:46]} {[%emt 00:00:09]} cxd4 {[%clk 00:18:00]} {[%emt
00:00:31]} 10. cxd4 {[%clk 00:17:44]} {[%emt 00:00:06]} Nb4 {[%clk 00:17:53]}
{[%emt 00:00:12]} 11. Nxb4 {[%clk 00:17:22]} {[%emt 00:00:27]} Bxb4 {[%clk
00:17:56]} {[%emt 00:00:02]} 12. Bd2 {[%clk 00:16:36]} {[%emt 00:00:51]} Qb6
{[%clk 00:16:59]} {[%emt 00:01:02]} 13. Be3 {[%clk 00:14:30]} {[%emt 00:02:11]}
Nxe3 {[%clk 00:16:01]} {[%emt 00:01:04]} 14. fxe3 {[%clk 00:14:30]} {[%emt
00:00:04]} h6 {[%clk 00:15:47]} {[%emt 00:00:19]} 15. Qd3 {[%clk 00:11:09]}
{[%emt 00:03:26]} a6 {[%clk 00:13:48]} {[%emt 00:02:04]} 16. Rac1 {[%clk
00:10:17]} {[%emt 00:00:56]} Rc6 {[%clk 00:13:22]} {[%emt 00:00:30]} 17. Nh4
{[%clk 00:08:27]} {[%emt 00:01:55]} Be7 {[%clk 00:12:07]} {[%emt 00:01:20]} 18.
Rxc6 {[%clk 00:07:17]} {[%emt 00:01:16]} Bxc6 {[%clk 00:12:03]} {[%emt
00:00:10]} 19. Ng6 {[%clk 00:05:49]} {[%emt 00:01:33]} Rg8 {[%clk 00:11:35]}
{[%emt 00:00:32]} 20. Nxe7 {[%clk 00:05:34]} {[%emt 00:00:21]} Kxe7 {[%clk
00:11:38]} {[%emt 00:00:02]} 21. Qa3+ {[%clk 00:05:20]} {[%emt 00:00:18]} Ke8
{[%clk 00:11:18]} {[%emt 00:00:24]} 22. Qd6 {[%clk 00:04:27]} {[%emt 00:00:58]}
Qd8 {[%clk 00:10:38]} {[%emt 00:00:46]} 23. Qxd8+ {[%clk 00:04:18]} {[%emt
00:00:14]} Kxd8 {[%clk 00:10:41]} {[%emt 00:00:03]} 24. Rxf7 {[%clk 00:04:20]}
{[%emt 00:00:03]} Ke8 {[%clk 00:10:25]} {[%emt 00:00:20]} 25. Rf1 {[%clk
00:03:50]} {[%emt 00:00:36]} Ke7 {[%clk 00:09:31]} {[%emt 00:00:59]} 26. Bh5
{[%clk 00:03:41]} {[%emt 00:00:14]} g6 {[%clk 00:09:02]} {[%emt 00:00:34]} 27.
Bg4 {[%clk 00:03:31]} {[%emt 00:00:15]} Be8 {[%clk 00:09:01]} {[%emt 00:00:06]}
28. Rc1 {[%clk 00:03:03]} {[%emt 00:00:33]} Bc6 {[%clk 00:09:00]} {[%emt
00:00:05]} 29. Kf2 {[%clk 00:02:58]} {[%emt 00:00:10]} Rf8+ {[%clk 00:08:29]}
{[%emt 00:00:36]} 30. Ke2 {[%clk 00:02:59]} {[%emt 00:00:05]} Bb5+ {[%clk
00:08:30]} {[%emt 00:00:03]} 31. Kd1 {[%clk 00:02:13]} {[%emt 00:00:50]} Bc6
{[%clk 00:07:17]} {[%emt 00:01:19]} 32. Bf3 {[%clk 00:01:54]} {[%emt 00:00:23]}
Kd7 {[%clk 00:07:02]} {[%emt 00:00:21]} 33. a3 {[%clk 00:01:48]} {[%emt
00:00:12]} Ba4+ {[%clk 00:06:55]} {[%emt 00:00:12]} 34. Kd2 {[%clk 00:01:43]}
{[%emt 00:00:10]} Bc6 {[%clk 00:06:45]} {[%emt 00:00:15]} 35. b4 {[%clk
00:01:45]} {[%emt 00:00:03]} b5 {[%clk 00:06:44]} {[%emt 00:00:05]} 36. Rf1
{[%clk 00:01:41]} {[%emt 00:00:09]} Ke7 {[%clk 00:06:35]} {[%emt 00:00:14]} 37.
Be2 {[%clk 00:01:38]} {[%emt 00:00:09]} Rf5 {[%clk 00:05:54]} {[%emt 00:00:46]}
38. Rxf5 {[%clk 00:01:14]} {[%emt 00:00:29]} exf5 {[%clk 00:05:56]} {[%emt
00:00:04]} 39. Bd3 {[%clk 00:01:14]} {[%emt 00:00:03]} Ke6 {[%clk 00:05:49]}
{[%emt 00:00:13]} 40. Ke2 {[%clk 00:01:17]} {[%emt 00:00:02]} Be8 {[%clk
00:05:39]} {[%emt 00:00:15]} 41. Kf3 {[%clk 00:01:09]} {[%emt 00:00:12]} Bf7
{[%clk 00:05:38]} {[%emt 00:00:07]} 42. g4 {[%clk 00:00:58]} {[%emt 00:00:17]}
Be8 {[%clk 00:05:38]} {[%emt 00:00:05]} 43. gxf5+ {[%clk 00:00:59]} {[%emt
00:00:04]} gxf5 {[%clk 00:05:41]} 44. Kf4 {[%clk 00:00:59]} {[%emt 00:00:04]}
Bf7 {[%clk 00:05:39]} {[%emt 00:00:07]} 45. Bxf5+ {[%clk 00:01:00]} {[%emt
00:00:06]} Ke7 {[%clk 00:05:42]} {[%emt 00:00:02]} 46. Bc8 {[%clk 00:00:59]}
{[%emt 00:00:05]} Bg6 {[%clk 00:05:44]} {[%emt 00:00:03]} 47. Bxa6 {[%clk
00:00:58]} {[%emt 00:00:06]} 1-0

[Event "MCR rapid mládeže 2023 U16"]
[Site "Harachov, Czech Republic"]
[Date "2023.09.09"]
[Round "6.11"]
[White "Mikesova, Lenka"]
[Black "Buchtova, Viktorie"]
[Result "1/2-1/2"]
[TimeControl "20min+5s/move"]
[WhiteElo "1410"]
[BlackElo "1556"]

1. e4 {[%clk 00:20:09]} {[%emt 00:00:01]} c5 {[%clk 00:20:10]} 2. Nf3 {[%clk
00:20:12]} {[%emt 00:00:02]} Nc6 {[%clk 00:20:13]} {[%emt 00:00:02]} 3. d4
{[%clk 00:20:14]} {[%emt 00:00:03]} cxd4 {[%clk 00:20:16]} {[%emt 00:00:02]} 4.
Nxd4 {[%clk 00:20:16]} {[%emt 00:00:03]} g6 {[%clk 00:20:20]} 5. Nc3 {[%clk
00:20:12]} {[%emt 00:00:09]} Bg7 {[%clk 00:20:24]} {[%emt 00:00:01]} 6. Be3
{[%clk 00:20:09]} {[%emt 00:00:07]} Nf6 {[%clk 00:20:23]} {[%emt 00:00:05]} 7.
Bc4 {[%clk 00:19:53]} {[%emt 00:00:22]} O-O {[%clk 00:20:24]} {[%emt 00:00:04]}
8. Bb3 {[%clk 00:19:36]} {[%emt 00:00:21]} d6 {[%clk 00:20:26]} {[%emt
00:00:04]} 9. f3 {[%clk 00:19:37]} {[%emt 00:00:04]} Bd7 {[%clk 00:20:29]}
{[%emt 00:00:02]} 10. Qd2 {[%clk 00:19:18]} {[%emt 00:00:24]} Ne5 {[%clk
00:20:31]} {[%emt 00:00:02]} 11. O-O-O {[%clk 00:18:22]} {[%emt 00:01:01]} Rb8
{[%clk 00:20:35]} {[%emt 00:00:02]} 12. g4 {[%clk 00:17:06]} {[%emt 00:01:20]}
b5 {[%clk 00:20:33]} {[%emt 00:00:07]} 13. h4 {[%clk 00:15:46]} {[%emt
00:01:25]} Nc4 {[%clk 00:20:02]} {[%emt 00:00:36]} 14. Bxc4 {[%clk 00:14:43]}
{[%emt 00:01:07]} bxc4 {[%clk 00:20:03]} {[%emt 00:00:05]} 15. Kb1 {[%clk
00:13:56]} {[%emt 00:00:52]} Qb6 {[%clk 00:18:42]} {[%emt 00:01:23]} 16. Qc1
{[%clk 00:13:49]} {[%emt 00:00:14]} Qb4 {[%clk 00:17:12]} {[%emt 00:01:34]} 17.
Bd2 {[%clk 00:12:30]} {[%emt 00:01:25]} Qc5 {[%clk 00:16:22]} {[%emt 00:00:55]}
18. Be3 {[%clk 00:12:09]} {[%emt 00:00:26]} Qb4 {[%clk 00:15:19]} {[%emt
00:01:08]} 19. Bd2 {[%clk 00:11:46]} {[%emt 00:00:27]} Qb7 {[%clk 00:15:23]}
{[%emt 00:00:01]} 20. Be3 {[%clk 00:10:09]} {[%emt 00:01:43]} a5 {[%clk
00:15:20]} {[%emt 00:00:08]} 21. Ka1 {[%clk 00:08:52]} {[%emt 00:01:22]} a4
{[%clk 00:14:11]} {[%emt 00:01:14]} 22. a3 {[%clk 00:08:43]} {[%emt 00:00:14]}
h5 {[%clk 00:12:21]} {[%emt 00:01:55]} 23. gxh5 {[%clk 00:07:56]} {[%emt
00:00:52]} Nxh5 {[%clk 00:12:16]} {[%emt 00:00:10]} 24. Na2 {[%clk 00:07:24]}
{[%emt 00:00:37]} Kh7 {[%clk 00:10:26]} {[%emt 00:01:55]} 25. Nb4 {[%clk
00:07:15]} {[%emt 00:00:14]} Rbc8 {[%clk 00:03:42]} {[%emt 00:06:49]} 1/2-1/2

[Event "MCR rapid mládeže 2023 U16"]
[Site "Harachov, Czech Republic"]
[Date "2023.09.09"]
[Round "6.12"]
[White "Nguyen, Nhat Minh Thu"]
[Black "Slivova, Linda"]
[Result "1-0"]
[TimeControl "20min+5s/move"]
[WhiteElo "1405"]
[BlackElo "1386"]

1. e4 {[%clk 00:20:08]} {[%emt 00:00:01]} d5 {[%clk 00:20:09]} {[%emt
00:00:01]} 2. exd5 {[%clk 00:20:09]} {[%emt 00:00:05]} Qxd5 {[%clk 00:20:12]}
{[%emt 00:00:02]} 3. d4 {[%clk 00:20:13]} {[%emt 00:00:01]} Nf6 {[%clk
00:20:10]} {[%emt 00:00:06]} 4. Be3 {[%clk 00:20:06]} {[%emt 00:00:13]} c6
{[%clk 00:19:44]} {[%emt 00:00:31]} 5. c4 {[%clk 00:20:01]} {[%emt 00:00:09]}
Qd6 {[%clk 00:19:04]} {[%emt 00:00:45]} 6. Nc3 {[%clk 00:19:51]} {[%emt
00:00:16]} Bf5 {[%clk 00:18:37]} {[%emt 00:00:31]} 7. h3 {[%clk 00:19:04]}
{[%emt 00:00:52]} e6 {[%clk 00:18:13]} {[%emt 00:00:29]} 8. Nf3 {[%clk
00:18:45]} {[%emt 00:00:24]} Nbd7 {[%clk 00:18:05]} {[%emt 00:00:13]} 9. Be2
{[%clk 00:17:41]} {[%emt 00:01:09]} Be7 {[%clk 00:17:41]} {[%emt 00:00:29]} 10.
Qd2 {[%clk 00:16:08]} {[%emt 00:01:38]} O-O {[%clk 00:16:17]} {[%emt 00:01:29]}
11. O-O {[%clk 00:16:11]} {[%emt 00:00:03]} Qc7 {[%clk 00:13:35]} {[%emt
00:02:47]} 12. Bd3 {[%clk 00:14:45]} {[%emt 00:01:30]} Bxd3 {[%clk 00:13:04]}
{[%emt 00:00:36]} 13. Qxd3 {[%clk 00:14:47]} {[%emt 00:00:02]} Rad8 {[%clk
00:12:18]} {[%emt 00:00:52]} 14. Qc2 {[%clk 00:14:04]} {[%emt 00:00:48]} e5
{[%clk 00:10:33]} {[%emt 00:01:50]} 15. Rfe1 {[%clk 00:13:04]} {[%emt
00:01:05]} exd4 {[%clk 00:09:33]} {[%emt 00:01:05]} 16. Bxd4 {[%clk 00:12:46]}
{[%emt 00:00:23]} Rfe8 {[%clk 00:08:38]} {[%emt 00:01:01]} 17. Ne5 {[%clk
00:08:22]} {[%emt 00:04:28]} c5 {[%clk 00:05:57]} {[%emt 00:02:46]} 18. Nxd7
{[%clk 00:08:12]} {[%emt 00:00:15]} cxd4 {[%clk 00:05:35]} {[%emt 00:00:27]} 19.
Nxf6+ {[%clk 00:07:45]} {[%emt 00:00:32]} Bxf6 {[%clk 00:05:25]} {[%emt
00:00:14]} 20. Ne4 {[%clk 00:07:09]} {[%emt 00:00:41]} Be5 {[%clk 00:04:35]}
{[%emt 00:00:56]} 21. Qd3 {[%clk 00:06:03]} {[%emt 00:01:10]} Re6 {[%clk
00:03:18]} {[%emt 00:01:22]} 22. Rad1 {[%clk 00:02:51]} {[%emt 00:03:17]} Rg6
{[%clk 00:02:56]} {[%emt 00:00:27]} 23. Nc3 {[%clk 00:01:46]} {[%emt 00:01:10]}
Rc8 {[%clk 00:00:53]} {[%emt 00:02:08]} 24. Nd5 {[%clk 00:01:34]} {[%emt
00:00:17]} Qd6 {[%clk 00:00:36]} {[%emt 00:00:22]} 25. b3 {[%clk 00:01:25]}
{[%emt 00:00:13]} b5 {[%clk 00:00:28]} {[%emt 00:00:13]} 26. Re2 {[%clk
00:00:40]} {[%emt 00:00:50]} bxc4 {[%clk 00:00:21]} {[%emt 00:00:12]} 27. bxc4
{[%clk 00:00:44]} h6 {[%clk 00:00:13]} {[%emt 00:00:13]} 28. Rde1 {[%clk
00:00:48]} {[%emt 00:00:01]} Re6 {[%clk 00:00:13]} {[%emt 00:00:06]} 29. Re4
{[%clk 00:00:26]} {[%emt 00:00:27]} Rce8 {[%clk 00:00:10]} {[%emt 00:00:08]} 30.
a4 {[%clk 00:00:13]} {[%emt 00:00:18]} Qc6 {[%clk 00:00:09]} {[%emt 00:00:05]}
31. Qc2 {[%clk 00:00:12]} {[%emt 00:00:08]} Bb8 {[%clk 00:00:08]} {[%emt
00:00:06]} 32. Rxe6 {[%clk 00:00:16]} {[%emt 00:00:01]} Rxe6 {[%clk 00:00:11]}
33. Rxe6 {[%clk 00:00:10]} {[%emt 00:00:12]} Qxe6 {[%clk 00:00:15]} {[%emt
00:00:01]} 34. Qd2 {[%clk 00:00:12]} {[%emt 00:00:03]} Be5 {[%clk 00:00:18]}
{[%emt 00:00:02]} 35. f4 {[%clk 00:00:14]} {[%emt 00:00:02]} Bf6 {[%clk
00:00:19]} {[%emt 00:00:04]} 36. Nxf6+ {[%clk 00:00:17]} {[%emt 00:00:02]} Qxf6
{[%clk 00:00:23]} 37. c5 {[%clk 00:00:19]} {[%emt 00:00:03]} Qd8 {[%clk
00:00:13]} {[%emt 00:00:15]} 38. Kh1 {[%clk 00:00:17]} {[%emt 00:00:07]} Qd5
{[%clk 00:00:15]} {[%emt 00:00:03]} 39. c6 {[%clk 00:00:18]} {[%emt 00:00:05]}
Qxc6 {[%clk 00:00:18]} {[%emt 00:00:02]} 40. Qxd4 {[%clk 00:00:22]} Qxa4 {[%clk
00:00:17]} {[%emt 00:00:06]} 41. Qxa4 {[%clk 00:00:26]} {[%emt 00:00:02]} 1-0

[Event "MCR rapid mládeže 2023 U16"]
[Site "Harachov, Czech Republic"]
[Date "2023.09.09"]
[Round "6.13"]
[White "Kovarova, Karolina"]
[Black "Dorazilova, Kristyna"]
[Result "1-0"]
[TimeControl "20min+5s/move"]
[WhiteElo "1006"]
[BlackElo "1517"]

1. e4 {[%clk 00:20:08]} {[%emt 00:07:48]} d6 {[%clk 00:20:09]} {[%emt
00:00:02]} 2. Nf3 {[%clk 00:20:10]} {[%emt 00:00:03]} Nf6 {[%clk 00:20:12]}
{[%emt 00:00:01]} 3. Nc3 {[%clk 00:20:12]} {[%emt 00:00:04]} Nbd7 {[%clk
00:20:16]} {[%emt 00:00:02]} 4. Bc4 {[%clk 00:20:09]} {[%emt 00:00:07]} h6
{[%clk 00:20:18]} {[%emt 00:00:02]} 5. d3 {[%clk 00:20:00]} {[%emt 00:00:15]}
e5 {[%clk 00:20:20]} {[%emt 00:00:03]} 6. Be3 {[%clk 00:19:45]} {[%emt
00:00:20]} Be7 {[%clk 00:20:21]} {[%emt 00:00:03]} 7. O-O {[%clk 00:19:39]}
{[%emt 00:00:11]} c6 {[%clk 00:20:24]} {[%emt 00:00:03]} 8. d4 {[%clk
00:19:26]} {[%emt 00:00:18]} Qc7 {[%clk 00:20:25]} {[%emt 00:00:04]} 9. dxe5
{[%clk 00:18:55]} {[%emt 00:00:35]} dxe5 {[%clk 00:20:28]} {[%emt 00:00:02]} 10.
Nd2 {[%clk 00:17:33]} {[%emt 00:01:27]} g5 {[%clk 00:19:47]} {[%emt 00:00:46]}
11. Qf3 {[%clk 00:15:52]} {[%emt 00:01:45]} Nf8 {[%clk 00:18:29]} {[%emt
00:01:24]} 12. Bc5 {[%clk 00:12:55]} {[%emt 00:03:03]} g4 {[%clk 00:14:14]}
{[%emt 00:04:20]} 13. Qe3 {[%clk 00:11:53]} {[%emt 00:01:06]} Bxc5 {[%clk
00:12:41]} {[%emt 00:01:39]} 14. Qxc5 {[%clk 00:11:38]} {[%emt 00:00:19]} Ng6
{[%clk 00:12:27]} {[%emt 00:00:20]} 15. Nb5 {[%clk 00:10:05]} {[%emt 00:01:39]}
Qe7 {[%clk 00:10:22]} {[%emt 00:02:09]} 16. Nd6+ {[%clk 00:08:36]} {[%emt
00:01:33]} Kd7 {[%clk 00:07:19]} {[%emt 00:03:08]} 17. Nb3 {[%clk 00:05:31]}
{[%emt 00:03:10]} b6 {[%clk 00:06:11]} {[%emt 00:01:13]} 18. Qb4 {[%clk
00:03:56]} {[%emt 00:01:39]} c5 {[%clk 00:04:41]} {[%emt 00:01:36]} 19. Qb5+
{[%clk 00:03:40]} {[%emt 00:00:21]} Kxd6 {[%clk 00:04:15]} {[%emt 00:00:31]} 20.
Rfd1+ {[%clk 00:03:37]} {[%emt 00:00:07]} Kc7 {[%clk 00:04:19]} {[%emt
00:00:02]} 21. Na5 {[%clk 00:02:04]} {[%emt 00:01:38]} Bd7 {[%clk 00:02:20]}
{[%emt 00:02:04]} 22. Qa6 {[%clk 00:01:44]} {[%emt 00:00:25]} bxa5 {[%clk
00:01:42]} {[%emt 00:00:43]} 23. Qxa5+ {[%clk 00:01:40]} {[%emt 00:00:09]} Kb8
{[%clk 00:01:45]} 24. c3 {[%clk 00:01:04]} {[%emt 00:00:42]} Bc6 {[%clk
00:00:48]} {[%emt 00:01:02]} 25. Qa3 {[%clk 00:00:48]} {[%emt 00:00:21]} Bb7
{[%clk 00:00:28]} {[%emt 00:00:25]} 26. b4 {[%clk 00:00:39]} {[%emt 00:00:13]}
cxb4 {[%clk 00:00:25]} {[%emt 00:00:09]} 27. cxb4 {[%clk 00:00:43]} {[%emt
00:00:01]} Rd8 {[%clk 00:00:12]} {[%emt 00:00:18]} 28. Rdc1 {[%clk 00:00:40]}
{[%emt 00:00:08]} Rc8 {[%clk 00:00:10]} {[%emt 00:00:07]} 29. Rc3 {[%clk
00:00:26]} {[%emt 00:00:19]} Nxe4 {[%clk 00:00:12]} {[%emt 00:00:03]} 30. Rcc1
{[%clk 00:00:17]} {[%emt 00:00:13]} Nd6 {[%clk 00:00:16]} {[%emt 00:00:02]} 31.
Bd3 {[%clk 00:00:16]} {[%emt 00:00:06]} Rxc1+ {[%clk 00:00:19]} {[%emt
00:00:02]} 32. Rxc1 {[%clk 00:00:20]} {[%emt 00:00:01]} Qd7 {[%clk 00:00:09]}
{[%emt 00:00:15]} 33. b5 {[%clk 00:00:16]} {[%emt 00:00:09]} Nxb5 {[%clk
00:00:06]} {[%emt 00:00:08]} 34. Qb3 {[%clk 00:00:16]} {[%emt 00:00:05]} Nd4
{[%clk 00:00:09]} {[%emt 00:00:02]} 35. Qd1 {[%clk 00:00:13]} {[%emt 00:00:07]}
Qe7 {[%clk 00:00:08]} {[%emt 00:00:07]} 36. Rb1 {[%clk 00:00:09]} {[%emt
00:00:09]} Kc8 {[%clk 00:00:08]} {[%emt 00:00:05]} 37. Qc1+ {[%clk 00:00:12]}
{[%emt 00:00:02]} Kd8 {[%clk 00:00:10]} {[%emt 00:00:02]} 38. Qb2 {[%clk
00:00:10]} {[%emt 00:00:07]} Rb8 {[%clk 00:00:09]} {[%emt 00:00:06]} 39. Qd2
{[%clk 00:00:11]} {[%emt 00:00:04]} Qc7 {[%clk 00:00:10]} {[%emt 00:00:05]} 40.
Rc1 {[%clk 00:00:12]} {[%emt 00:00:03]} Qb6 {[%clk 00:00:13]} {[%emt 00:00:02]}
41. Kh1 {[%clk 00:00:11]} {[%emt 00:00:06]} Ke7 {[%clk 00:00:17]} {[%emt
00:00:01]} 42. Re1 {[%clk 00:00:07]} {[%emt 00:00:10]} 1-0

[Event "MCR rapid mládeže 2023 U16"]
[Site "Harachov, Czech Republic"]
[Date "2023.09.09"]
[Round "6.14"]
[White "Kaplanova, Dominika"]
[Black "Kubatova, Beta"]
[Result "1/2-1/2"]
[TimeControl "20min+5s/move"]
[WhiteElo "1461"]
[BlackElo "1376"]

1. e4 {[%clk 00:20:04]} {[%emt 00:00:06]} c6 {[%clk 00:20:08]} {[%emt
00:00:02]} 2. d4 {[%clk 00:19:58]} {[%emt 00:00:11]} d5 {[%clk 00:20:10]}
{[%emt 00:00:03]} 3. Nd2 {[%clk 00:19:42]} {[%emt 00:00:21]} dxe4 {[%clk
00:20:08]} {[%emt 00:00:07]} 4. Nxe4 {[%clk 00:19:44]} {[%emt 00:00:03]} Bf5
{[%clk 00:20:09]} {[%emt 00:00:04]} 5. Ng3 {[%clk 00:19:38]} {[%emt 00:00:11]}
Bg6 {[%clk 00:20:12]} {[%emt 00:00:02]} 6. Nf3 {[%clk 00:19:24]} {[%emt
00:00:19]} Nf6 {[%clk 00:19:45]} {[%emt 00:00:32]} 7. c3 {[%clk 00:18:48]}
{[%emt 00:00:42]} Nbd7 {[%clk 00:19:45]} {[%emt 00:00:05]} 8. Bd3 {[%clk
00:17:51]} {[%emt 00:01:01]} Bxd3 {[%clk 00:19:41]} {[%emt 00:00:09]} 9. Qxd3
{[%clk 00:17:54]} {[%emt 00:00:03]} e6 {[%clk 00:19:44]} {[%emt 00:00:01]} 10.
Bg5 {[%clk 00:17:30]} {[%emt 00:00:29]} Qc7 {[%clk 00:19:07]} {[%emt 00:00:42]}
11. O-O {[%clk 00:16:30]} {[%emt 00:01:05]} Bd6 {[%clk 00:19:00]} {[%emt
00:00:10]} 12. Rfe1 {[%clk 00:15:34]} {[%emt 00:01:03]} O-O {[%clk 00:18:54]}
{[%emt 00:00:11]} 13. Bxf6 {[%clk 00:15:16]} {[%emt 00:00:23]} Nxf6 {[%clk
00:18:56]} {[%emt 00:00:02]} 14. Ne4 {[%clk 00:14:57]} {[%emt 00:00:23]} Be7
{[%clk 00:18:29]} {[%emt 00:00:33]} 15. h3 {[%clk 00:11:48]} {[%emt 00:03:14]}
Rad8 {[%clk 00:18:09]} {[%emt 00:00:25]} 16. Qc2 {[%clk 00:11:16]} {[%emt
00:00:37]} Qb6 {[%clk 00:17:57]} {[%emt 00:00:17]} 17. Nfg5 {[%clk 00:10:44]}
{[%emt 00:00:36]} Nxe4 {[%emt 00:00:34]} 18. Nxe4 {[%emt 00:00:02]} h6 {[%clk
00:17:15]} {[%emt 00:00:11]} 19. Ng3 {[%clk 00:09:26]} {[%emt 00:01:23]} c5
{[%clk 00:16:54]} {[%emt 00:00:27]} 20. dxc5 {[%clk 00:08:30]} {[%emt
00:01:02]} Qxc5 {[%clk 00:16:54]} {[%emt 00:00:05]} 21. Re2 {[%clk 00:07:47]}
{[%emt 00:00:47]} Rd7 {[%clk 00:16:35]} {[%emt 00:00:24]} 22. Rd1 {[%clk
00:06:48]} {[%emt 00:01:03]} Rfd8 {[%clk 00:16:35]} {[%emt 00:00:07]} 23. Rxd7
{[%clk 00:06:51]} {[%emt 00:00:03]} Rxd7 {[%clk 00:16:38]} {[%emt 00:00:02]} 24.
Rd2 {[%clk 00:06:25]} {[%emt 00:00:29]} Rxd2 {[%clk 00:16:06]} {[%emt
00:00:37]} 25. Qxd2 {[%clk 00:06:29]} {[%emt 00:00:02]} Qd6 {[%clk 00:15:27]}
{[%emt 00:00:44]} 26. Ne4 {[%clk 00:05:26]} {[%emt 00:01:05]} Qxd2 {[%clk
00:15:24]} {[%emt 00:00:11]} 27. Nxd2 {[%clk 00:05:29]} {[%emt 00:00:02]} Kf8
{[%clk 00:15:26]} {[%emt 00:00:03]} 28. Nc4 {[%clk 00:05:24]} {[%emt 00:00:10]}
b6 {[%clk 00:15:15]} {[%emt 00:00:17]} 29. Ne5 {[%clk 00:04:45]} {[%emt
00:00:43]} Bc5 {[%clk 00:14:49]} {[%emt 00:00:31]} 30. Nd7+ {[%clk 00:03:34]}
{[%emt 00:01:17]} Ke7 {[%clk 00:14:46]} {[%emt 00:00:07]} 31. Nxc5 {[%clk
00:03:38]} {[%emt 00:00:02]} bxc5 {[%clk 00:14:50]} {[%emt 00:00:01]} 32. Kf1
{[%clk 00:03:33]} {[%emt 00:00:09]} Kd6 {[%clk 00:14:53]} {[%emt 00:00:01]} 33.
Ke2 {[%clk 00:03:34]} {[%emt 00:00:05]} f5 {[%clk 00:14:56]} {[%emt 00:00:03]}
34. b4 {[%clk 00:03:24]} {[%emt 00:00:15]} a6 {[%clk 00:14:30]} {[%emt
00:00:31]} 35. f4 {[%clk 00:02:48]} {[%emt 00:00:40]} Kd5 {[%clk 00:13:50]}
{[%emt 00:00:46]} 36. Kd3 {[%clk 00:02:44]} {[%emt 00:00:08]} g5 {[%clk
00:13:19]} {[%emt 00:00:36]} 37. g3 {[%clk 00:02:38]} {[%emt 00:00:12]} cxb4
{[%clk 00:09:58]} {[%emt 00:03:26]} 38. cxb4 {[%clk 00:02:41]} {[%emt
00:00:03]} e5 {[%clk 00:10:01]} {[%emt 00:00:02]} 39. fxe5 {[%clk 00:02:34]}
{[%emt 00:00:13]} Kxe5 {[%clk 00:10:04]} {[%emt 00:00:02]} 40. Ke3 {[%clk
00:02:12]} {[%emt 00:00:26]} Kd5 {[%clk 00:09:18]} {[%emt 00:00:51]} 41. a4
{[%clk 00:02:11]} {[%emt 00:00:07]} Kc4 {[%clk 00:09:19]} {[%emt 00:00:04]} 42.
b5 {[%clk 00:02:13]} {[%emt 00:00:04]} axb5 {[%clk 00:09:21]} {[%emt 00:00:03]}
43. axb5 {[%clk 00:02:17]} {[%emt 00:00:01]} Kxb5 {[%clk 00:09:25]} {[%emt
00:00:01]} 44. Kd4 {[%clk 00:02:20]} {[%emt 00:00:02]} f4 {[%clk 00:09:25]}
{[%emt 00:00:04]} 45. gxf4 {[%clk 00:02:15]} {[%emt 00:00:10]} gxf4 {[%clk
00:09:28]} {[%emt 00:00:02]} 46. Ke4 {[%clk 00:02:20]} f3 {[%clk 00:06:37]}
{[%emt 00:02:57]} 47. Kxf3 {[%clk 00:02:22]} {[%emt 00:00:03]} Kc5 {[%clk
00:06:41]} {[%emt 00:00:01]} 48. Kf4 {[%clk 00:02:17]} {[%emt 00:00:10]} Kd6
{[%clk 00:06:44]} {[%emt 00:00:02]} 49. Kf5 {[%clk 00:01:53]} {[%emt 00:00:29]}
Ke7 {[%clk 00:06:43]} {[%emt 00:00:06]} 50. Kg6 {[%clk 00:01:34]} {[%emt
00:00:25]} Kf8 {[%clk 00:06:18]} {[%emt 00:00:30]} 51. Kxh6 {[%clk 00:01:37]}
{[%emt 00:00:02]} Kg8 {[%clk 00:06:21]} {[%emt 00:00:02]} 52. h4 {[%clk
00:01:40]} {[%emt 00:00:02]} Kh8 {[%clk 00:06:19]} {[%emt 00:00:07]} 53. Kg6
{[%clk 00:01:40]} {[%emt 00:00:05]} Kg8 {[%clk 00:06:17]} {[%emt 00:00:06]} 54.
h5 {[%clk 00:01:44]} {[%emt 00:00:01]} Kh8 {[%clk 00:06:17]} {[%emt 00:00:06]}
55. h6 {[%clk 00:01:47]} {[%emt 00:00:02]} Kg8 {[%clk 00:06:20]} {[%emt
00:00:01]} 56. h7+ {[%clk 00:01:50]} {[%emt 00:00:02]} Kh8 {[%clk 00:06:23]}
{[%emt 00:00:01]} 57. Kf5 {[%clk 00:01:47]} {[%emt 00:00:09]} Kxh7 {[%clk
00:06:26]} {[%emt 00:00:02]} 1/2-1/2